bitfinex/quotes_BTCUSD_20241020
["timestamp","ask_amount","ask_price","bid_price","bid_amount"]
[1729442313516,0.93762768,68606.0,68605.0,0.001656]
[1729442313730,0.98172083,68606.0,68605.0,0.001656]
[1729442314627,0.80823138,68606.0,68605.0,0.001656]
[1729442317103,0.90413729,68606.0,68605.0,0.001656]
[1729442317319,1.05309644,68606.0,68605.0,0.001656]
[1729442318959,0.250781,68596.0,68595.0,0.001656]
[1729442319195,0.59332776,68596.0,68595.0,0.001656]
[1729442319430,0.75411531,68596.0,68595.0,0.001656]
[1729442319647,0.84120132,68596.0,68595.0,0.001656]
[1729442320108,0.75411531,68596.0,68595.0,0.001656]
[1729442320818,0.84118413,68596.0,68595.0,0.001656]
[1729442321494,0.84318413,68596.0,68595.0,0.001656]
[1729442321702,0.75611531,68596.0,68595.0,0.001656]
[1729442322132,0.90507446,68596.0,68595.0,0.001656]
[1729442322357,1.02396126,68596.0,68595.0,0.001656]
[1729442322984,1.11986717,68596.0,68595.0,0.001656]
[1729442323619,1.01098037,68596.0,68595.0,0.001656]
[1729442324325,1.11986717,68596.0,68595.0,0.001656]
[1729442324767,1.01098037,68596.0,68595.0,0.001656]
[1729442325715,1.09796289,68596.0,68595.0,0.001656]
[1729442325943,1.01098037,68596.0,68595.0,0.001656]
[1729442326376,1.09795455,68596.0,68595.0,0.001656]
[1729442327953,0.85019282,68596.0,68595.0,0.001656]
[1729442328416,0.91540214,68596.0,68595.0,0.001656]
[1729442328625,0.85019282,68596.0,68595.0,0.001656]
[1729442329678,0.91539099,68596.0,68595.0,0.001656]
[1729442330135,0.91339099,68596.0,68595.0,0.001656]
[1729442330811,0.91539099,68596.0,68595.0,0.001656]
[1729442332783,0.85019282,68596.0,68595.0,0.001656]
[1729442333469,0.89164271,68596.0,68595.0,0.001656]
[1729442333680,0.74268356,68596.0,68595.0,0.001656]
[1729442335068,0.69923367,68596.0,68595.0,0.001656]
[1729442339900,0.7426832,68596.0,68595.0,0.001656]
[1729442340318,0.69923367,68596.0,68595.0,0.001656]
[1729442341886,0.85019282,68596.0,68595.0,0.001656]
[1729442342349,0.87101437,68596.0,68595.0,0.001656]
[1729442343968,0.91447058,68596.0,68595.0,0.001656]
[1729442347003,0.87101437,68596.0,68595.0,0.001656]
[1729442348160,1.03353728,68596.0,68595.0,0.001656]
[1729442348382,1.03153728,68596.0,68595.0,0.001656]
[1729442348601,0.93624451,68596.0,68595.0,0.001656]
[1729442348869,0.93625149,68596.0,68595.0,0.001656]
[1729442349093,1.03355525,68596.0,68595.0,0.001656]
[1729442349524,1.03356073,68596.0,68595.0,0.001656]
[1729442349739,1.12047315,68596.0,68595.0,0.001656]
[1729442350415,1.03359957,68596.0,68595.0,0.001656]
[1729442350628,1.12051199,68596.0,68595.0,0.001656]
[1729442350846,1.03359957,68596.0,68595.0,0.001656]
[1729442351057,1.12051199,68596.0,68595.0,0.001656]
[1729442351318,1.11851199,68596.0,68595.0,0.001656]
[1729442351527,1.03159957,68596.0,68595.0,0.001656]
[1729442351744,1.11864052,68596.0,68595.0,0.001656]
[1729442351958,1.03159957,68596.0,68595.0,0.001656]
[1729442352182,1.07430055,68596.0,68595.0,0.001656]
[1729442352603,1.14046203,68596.0,68595.0,0.001656]
[1729442352860,1.18310837,68596.0,68595.0,0.001656]
[1729442353751,1.07430932,68596.0,68595.0,0.001656]
[1729442354499,1.07630932,68596.0,68595.0,0.001656]
[1729442355399,1.07430932,68596.0,68595.0,0.001656]
[1729442355826,1.07630932,68596.0,68595.0,0.001656]
[1729442356931,1.07656211,68596.0,68595.0,0.001656]
[1729442357812,1.07456211,68596.0,68595.0,0.001656]
[1729442358296,1.20739515,68596.0,68595.0,0.001656]
[1729442358701,1.07656211,68596.0,68595.0,0.001656]
[1729442361767,1.07676113,68596.0,68595.0,0.001656]
[1729442362193,1.07876113,68596.0,68595.0,0.001656]
[1729442363243,1.07676113,68596.0,68595.0,0.001656]
[1729442363654,1.07876113,68596.0,68595.0,0.001656]
[1729442364078,1.07676113,68596.0,68595.0,0.001656]
[1729442364291,1.07476113,68596.0,68595.0,0.001656]
[1729442364514,1.08276113,68596.0,68595.0,0.001656]
[1729442364725,1.08076113,68596.0,68595.0,0.001656]
[1729442364940,1.08276113,68596.0,68595.0,0.001656]
[1729442365377,1.23005294,68596.0,68595.0,0.001656]
[1729442365568,1.08276113,68596.0,68595.0,0.001656]
[1729442365777,1.22805294,68596.0,68595.0,0.001656]
[1729442365981,1.08076113,68596.0,68595.0,0.001656]
[1729442369043,0.93180198,68596.0,68595.0,0.001656]
[1729442369268,0.92880198,68596.0,68595.0,0.001656]
[1729442369712,0.93080198,68596.0,68595.0,0.001656]
[1729442370366,0.92780198,68596.0,68595.0,0.001656]
[1729442370607,0.92980198,68596.0,68595.0,0.001656]
[1729442370807,1.07709379,68596.0,68595.0,0.001656]
[1729442371016,0.98329379,68596.0,68595.0,0.001656]
[1729442371174,0.83600198,68596.0,68595.0,0.001656]
[1729442371399,0.83400198,68596.0,68595.0,0.001656]
[1729442372592,0.98296113,68596.0,68595.0,0.001656]
[1729442373839,0.90636113,68596.0,68595.0,0.001656]
[1729442374467,0.75740198,68596.0,68595.0,0.001656]
[1729442376125,0.75753055,68596.0,68595.0,0.001656]
[1729442385681,0.75754426,68596.0,68595.0,0.001656]
[1729442393573,0.76054426,68596.0,68595.0,0.001656]
[1729442394026,0.76354426,68596.0,68595.0,0.001656]
[1729442394911,0.83739179,68596.0,68595.0,0.001656]
[1729442398118,0.83939179,68596.0,68595.0,0.001656]
[1729442398531,0.83739179,68596.0,68595.0,0.001656]
[1729442398964,0.60230156,68596.0,68595.0,0.001656]
[1729442399173,0.76054312,68596.0,68595.0,0.001656]
[1729442400069,0.75754312,68596.0,68595.0,0.001656]
[1729442400292,0.75754357,68596.0,68595.0,0.001656]
[1729442408249,0.7585487,68596.0,68595.0,0.001656]
[1729442408489,0.7575487,68596.0,68595.0,0.001656]
[1729442409813,0.71490236,68596.0,68595.0,0.001656]
[1729442410050,0.67690236,68596.0,68595.0,0.098156]
[1729442410299,0.67890236,68596.0,68595.0,0.176756]
[1729442410520,0.68090236,68596.0,68595.0,0.176756]
[1729442410756,0.79009606,68596.0,68595.0,0.176756]
[1729442411167,0.81109606,68596.0,68595.0,0.176756]
[1729442412019,0.71319015,68596.0,68595.0,0.176756]
[1729442412234,0.6903686,68596.0,68595.0,0.176756]
[1729442412474,0.5811749,68596.0,68595.0,0.176756]
[1729442413555,0.84764254,68596.0,68595.0,0.001656]
[1729442413793,0.86254739,68596.0,68595.0,0.001656]
[1729442414033,0.73347632,68596.0,68595.0,0.001656]
[1729442414244,0.73147632,68596.0,68595.0,0.001656]
[1729442414473,0.88243547,68596.0,68595.0,0.001656]
[1729442415626,0.90525808,68596.0,68595.0,0.001656]
[1729442415846,0.98655808,68596.0,68595.0,0.001656]
[1729442416057,1.02919602,68596.0,68595.0,0.001656]
[1729442416312,0.98655808,68596.0,68595.0,0.001656]
[1729442417596,0.98645224,68596.0,68595.0,0.001656]
[1729442417784,1.08235815,68596.0,68595.0,0.001656]
[1729442418008,0.933399,68596.0,68595.0,0.001656]
[1729442418234,0.931399,68596.0,68595.0,0.001656]
[1729442419542,0.932399,68596.0,68595.0,0.001656]
[1729442420410,0.933399,68596.0,68595.0,0.001656]
[1729442422218,0.935399,68596.0,68595.0,0.001656]
[1729442422449,0.97807812,68596.0,68595.0,0.001656]
[1729442422705,0.97707812,68596.0,68595.0,0.001656]
[1729442422927,0.97607812,68596.0,68595.0,0.001656]
[1729442423185,0.88377812,68596.0,68595.0,0.001656]
[1729442423411,0.88377807,68596.0,68595.0,0.001656]
[1729442423605,0.84113341,68596.0,68595.0,0.001656]
[1729442423747,0.88377797,68596.0,68595.0,0.001656]
[1729442424163,0.84113341,68596.0,68595.0,0.001656]
[1729442424387,0.88377758,68596.0,68595.0,0.001656]
[1729442424601,0.84113341,68596.0,68595.0,0.001656]
[1729442424811,0.88377851,68596.0,68595.0,0.001656]
[1729442425474,0.84113341,68596.0,68595.0,0.001656]
[1729442426551,0.84064572,68596.0,68595.0,0.001656]
[1729442428354,0.83864572,68596.0,68595.0,0.001656]
[1729442428597,0.75734572,68596.0,68595.0,0.001656]
[1729442429175,0.7143443,68596.0,68595.0,0.001656]
[1729442430180,0.84533344,68596.0,68595.0,0.001656]
[1729442430388,0.7143443,68596.0,68595.0,0.001656]
[1729442431927,0.71434715,68596.0,68595.0,0.001656]
[1729442439450,0.71215954,68596.0,68595.0,0.001656]
[1729442440309,0.7143473,68596.0,68595.0,0.001656]
[1729442446858,0.7112873,68596.0,68595.0,0.001656]
[1729442451471,0.71132237,68596.0,68595.0,0.001656]
[1729442453928,0.73515037,68596.0,68595.0,0.001656]
[1729442456070,0.73515108,68596.0,68595.0,0.001656]
[1729442457533,0.82755108,68596.0,68595.0,0.001656]
[1729442459084,0.8275841,68596.0,68595.0,0.001656]
[1729442459324,0.95862957,68596.0,68595.0,0.001656]
[1729442459550,0.86622957,68596.0,68595.0,0.001656]
[1729442460701,0.86625687,68596.0,68595.0,0.001656]
[1729442464142,0.73519916,68596.0,68595.0,0.001656]
[1729442465203,0.86625687,68596.0,68595.0,0.001656]
[1729442466824,0.73519916,68596.0,68595.0,0.001656]
[1729442467040,0.86625687,68596.0,68595.0,0.001656]
[1729442467708,0.73519916,68596.0,68595.0,0.001656]
[1729442468262,0.73719916,68596.0,68595.0,0.001656]
[1729442468457,0.86828561,68596.0,68595.0,0.001656]
[1729442468685,0.73719916,68596.0,68595.0,0.001656]
[1729442469145,0.77990346,68596.0,68595.0,0.001656]
[1729442469597,0.73719916,68596.0,68595.0,0.001656]
[1729442470893,0.73519916,68596.0,68595.0,0.001656]
[1729442472216,0.73719916,68596.0,68595.0,0.001656]
[1729442472426,0.77989654,68596.0,68595.0,0.001656]
[1729442472623,0.73719916,68596.0,68595.0,0.001656]
[1729442473069,0.77989195,68596.0,68595.0,0.001656]
[1729442473299,0.77789195,68596.0,68595.0,0.001656]
[1729442473533,0.73519916,68596.0,68595.0,0.001656]
[1729442473744,0.73522578,68596.0,68595.0,0.001656]
[1729442474644,0.77791076,68596.0,68595.0,0.001656]
[1729442474855,0.73522578,68596.0,68595.0,0.001656]
[1729442475079,0.73722578,68596.0,68595.0,0.001656]
[1729442475289,0.77991094,68596.0,68595.0,0.001656]
[1729442475508,0.73722578,68596.0,68595.0,0.001656]
[1729442475727,0.77991021,68596.0,68595.0,0.001656]
[1729442476348,0.73722578,68596.0,68595.0,0.001656]
[1729442480212,0.77992495,68596.0,68595.0,0.001656]
[1729442482623,0.78192495,68596.0,68595.0,0.001656]
[1729442483469,0.78289408,68596.0,68595.0,0.001656]
[1729442483904,0.78189408,68596.0,68595.0,0.001656]
[1729442484115,0.78389408,68596.0,68595.0,0.001656]
[1729442484529,0.74121076,68596.0,68595.0,0.001656]
[1729442485201,0.78388527,68596.0,68595.0,0.001656]
[1729442485432,0.74121076,68596.0,68595.0,0.001656]
[1729442485912,0.78387963,68596.0,68595.0,0.001656]
[1729442486155,0.74121076,68596.0,68595.0,0.001656]
[1729442486387,0.78387764,68596.0,68595.0,0.001656]
[1729442487991,0.78187764,68596.0,68595.0,0.001656]
[1729442489207,0.77987764,68596.0,68595.0,0.001656]
[1729442492677,0.77787764,68596.0,68595.0,0.001656]
[1729442493507,0.77987764,68596.0,68595.0,0.001656]
[1729442495018,0.77787764,68596.0,68595.0,0.001656]
[1729442496108,0.77987764,68596.0,68595.0,0.001656]
[1729442496547,0.77963241,68596.0,68595.0,0.001656]
[1729442497679,0.77763241,68596.0,68595.0,0.001656]
[1729442497885,0.77754836,68596.0,68595.0,0.001656]
[1729442498508,0.78154836,68596.0,68595.0,0.001656]
[1729442501065,0.75872575,68596.0,68595.0,0.001656]
[1729442502631,0.273798,68588.0,68587.0,0.001656]
[1729442502885,0.69312031,68588.0,68587.0,0.001656]
[1729442503132,0.58394712,68588.0,68587.0,0.001656]
[1729442504407,0.69312657,68588.0,68587.0,0.001656]
[1729442504609,0.58394712,68588.0,68587.0,0.001656]
[1729442504982,0.69312671,68588.0,68587.0,0.001656]
[1729442505209,0.58394712,68588.0,68587.0,0.001656]
[1729442505378,0.69312766,68588.0,68587.0,0.001656]
[1729442505962,0.58394712,68588.0,68587.0,0.001656]
[1729442507806,0.60552996,68588.0,68587.0,0.001656]
[1729442508748,0.71471542,68588.0,68587.0,0.001656]
[1729442509209,0.60552996,68588.0,68587.0,0.001656]
[1729442512191,0.60557017,68588.0,68587.0,0.001656]
[1729442516395,0.60532489,68588.0,68587.0,0.001656]
[1729442519397,0.60534787,68588.0,68587.0,0.001656]
[1729442520735,0.44409471,68588.0,68587.0,0.001656]
[1729442520952,0.6053511,68588.0,68587.0,0.001656]
[1729442525282,0.60536074,68588.0,68587.0,0.001656]
[1729442536687,0.60511545,68588.0,68587.0,0.001656]
[1729442538837,0.71432804,68588.0,68587.0,0.001656]
[1729442539048,0.60511545,68588.0,68587.0,0.001656]
[1729442542493,0.71432657,68588.0,68587.0,0.001656]
[1729442542922,0.60511545,68588.0,68587.0,0.001656]
[1729442543360,0.71432594,68588.0,68587.0,0.001656]
[1729442543795,0.60511545,68588.0,68587.0,0.001656]
[1729442545147,0.71432186,68588.0,68587.0,0.001656]
[1729442545356,0.60511545,68588.0,68587.0,0.001656]
[1729442546673,0.714322,68588.0,68587.0,0.001656]
[1729442546876,0.715978,68588.0,68587.0,0.001656]
[1729442548433,0.60677145,68588.0,68587.0,0.001656]
[1729442548899,0.7159772,68588.0,68587.0,0.001656]
[1729442549081,0.60677145,68588.0,68587.0,0.001656]
[1729442549349,0.60675436,68588.0,68587.0,0.001656]
[1729442550062,0.7159611,68588.0,68587.0,0.001656]
[1729442550288,0.60675436,68588.0,68587.0,0.001656]
[1729442551567,0.71596083,68588.0,68587.0,0.001656]
[1729442551778,0.60675436,68588.0,68587.0,0.001656]
[1729442551994,0.7159602,68588.0,68587.0,0.001656]
[1729442552241,0.60675436,68588.0,68587.0,0.001656]
[1729442553584,0.71596038,68588.0,68587.0,0.001656]
[1729442556427,0.60675436,68588.0,68587.0,0.001656]
[1729442556663,0.60650907,68588.0,68587.0,0.001656]
[1729442556881,0.55446633,68588.0,68587.0,0.001656]
[1729442557530,0.44526013,68588.0,68587.0,0.001656]
[1729442561701,0.4680819,68588.0,68587.0,0.001656]
[1729442562608,0.47026986,68588.0,68587.0,0.001656]
[1729442572383,0.4680819,68588.0,68587.0,0.001656]
[1729442572590,0.57729486,68588.0,68587.0,0.001656]
[1729442573233,0.57948238,68588.0,68587.0,0.001656]
[1729442573659,0.57947673,68588.0,68587.0,0.001656]
[1729442575391,0.47026942,68588.0,68587.0,0.001656]
[1729442575643,0.44868658,68588.0,68587.0,0.096756]
[1729442576091,0.55789389,68588.0,68587.0,0.096756]
[1729442576342,0.44868658,68588.0,68587.0,0.096756]
[1729442576792,0.5576486,68588.0,68587.0,0.096756]
[1729442577215,0.44844129,68588.0,68587.0,0.096756]
[1729442579996,0.44844129,68588.0,68587.0,0.001656]
[1729442580503,0.55764458,68588.0,68587.0,0.001656]
[1729442582318,0.44844129,68588.0,68587.0,0.001656]
[1729442582545,0.55764458,68588.0,68587.0,0.001656]
[1729442583483,0.44844129,68588.0,68587.0,0.001656]
[1729442583935,0.55764458,68588.0,68587.0,0.001656]
[1729442585890,0.44844129,68588.0,68587.0,0.001656]
[1729442586108,0.55764068,68588.0,68587.0,0.001656]
[1729442588314,0.44844129,68588.0,68587.0,0.001656]
[1729442588516,0.53178256,68588.0,68587.0,0.001656]
[1729442589633,0.44442244,68588.0,68587.0,0.001656]
[1729442591445,0.50993613,68588.0,68587.0,0.001656]
[1729442591670,0.44442244,68588.0,68587.0,0.001656]
[1729442591885,0.50993311,68588.0,68587.0,0.001656]
[1729442592726,0.50992766,68588.0,68587.0,0.001656]
[1729442604436,0.44442244,68588.0,68587.0,0.001656]
[1729442604645,0.50992766,68588.0,68587.0,0.001656]
[1729442609774,0.44442244,68588.0,68587.0,0.001656]
[1729442611325,0.44442244,68588.0,68587.0,0.01259302]
[1729442614571,0.44442244,68588.0,68587.0,0.001656]
[1729442614792,0.44442244,68588.0,68587.0,0.01259382]
[1729442616811,0.44422104,68588.0,68587.0,0.01259382]
[1729442617898,0.48789393,68588.0,68587.0,0.01259382]
[1729442618122,0.48789392,68588.0,68587.0,0.01259382]
[1729442619501,0.44422104,68588.0,68587.0,0.01259382]
[1729442621484,0.48789061,68588.0,68587.0,0.01259382]
[1729442623474,0.44422104,68588.0,68587.0,0.01259382]
[1729442623655,0.48789038,68588.0,68587.0,0.01259382]
[1729442624965,0.44422104,68588.0,68587.0,0.01259382]
[1729442629210,0.44422104,68588.0,68587.0,0.01259569]
[1729442629415,0.44422104,68588.0,68587.0,0.001656]
[1729442629628,0.44422104,68588.0,68587.0,0.01259571]
[1729442631394,0.50972626,68588.0,68587.0,0.01259571]
[1729442631827,0.50972626,68588.0,68587.0,0.001656]
[1729442632476,0.44422104,68588.0,68587.0,0.001656]
[1729442632691,0.50973756,68588.0,68587.0,0.001656]
[1729442633369,0.50973756,68588.0,68587.0,0.01259596]
[1729442633605,0.44422104,68588.0,68587.0,0.01259596]
[1729442633839,0.44422104,68588.0,68587.0,0.001656]
[1729442636759,0.44397576,68588.0,68587.0,0.001656]
[1729442642633,0.50950443,68588.0,68587.0,0.01259536]
[1729442643087,0.50950443,68588.0,68587.0,0.001656]
[1729442643310,0.50950443,68588.0,68587.0,0.0125954]
[1729442646980,0.44397576,68588.0,68587.0,0.0125954]
[1729442649658,0.42115399,68588.0,68587.0,0.0125954]
[1729442651026,0.48668266,68588.0,68587.0,0.0125954]
[1729442651237,0.42115399,68588.0,68587.0,0.0125954]
[1729442651464,0.48668266,68588.0,68587.0,0.0125954]
[1729442653993,0.48668266,68588.0,68587.0,0.001656]
[1729442654218,0.48668266,68588.0,68587.0,0.01259534]
[1729442657867,0.48668266,68588.0,68587.0,0.01259552]
[1729442658086,0.42115399,68588.0,68587.0,0.01259552]
[1729442658296,0.48668172,68588.0,68587.0,0.01259552]
[1729442660717,0.48668172,68588.0,68587.0,0.001656]
[1729442660923,0.48668074,68588.0,68587.0,0.001656]
[1729442662647,0.48668074,68588.0,68587.0,0.01259554]
[1729442663089,0.48668216,68588.0,68587.0,0.01259554]
[1729442666497,0.48668216,68588.0,68587.0,0.001656]
[1729442666923,0.42115399,68588.0,68587.0,0.01259586]
[1729442667188,0.42115399,68588.0,68587.0,0.001656]
[1729442668253,0.48668124,68588.0,68587.0,0.01259584]
[1729442668490,0.4866814,68588.0,68587.0,0.01259584]
[1729442668699,0.4866814,68588.0,68587.0,0.01259588]
[1729442668932,0.42115399,68588.0,68587.0,0.001656]
[1729442669145,0.48668079,68588.0,68587.0,0.001656]
[1729442669374,0.48668079,68588.0,68587.0,0.01259585]
[1729442669613,0.42115399,68588.0,68587.0,0.001656]
[1729442669850,0.48668115,68588.0,68587.0,0.01259591]
[1729442670539,0.42115399,68588.0,68587.0,0.001656]
[1729442670985,0.48668141,68588.0,68587.0,0.01259585]
[1729442671654,0.42115399,68588.0,68587.0,0.001656]
[1729442671870,0.48668106,68588.0,68587.0,0.01259589]
[1729442672572,0.48668106,68588.0,68587.0,0.001656]
[1729442672786,0.42115399,68588.0,68587.0,0.001656]
[1729442673709,0.42517284,68588.0,68587.0,0.001656]
[1729442674404,0.49070236,68588.0,68587.0,0.001656]
[1729442674630,0.42517284,68588.0,68587.0,0.001656]
[1729442675175,0.49070042,68588.0,68587.0,0.01259557]
[1729442677464,0.4907005,68588.0,68587.0,0.01259557]
[1729442678564,0.4907005,68588.0,68587.0,0.01259582]
[1729442678565,0.48668165,68588.0,68587.0,0.01259582]
[1729442678796,0.42115399,68588.0,68587.0,0.01259582]
[1729442679012,0.48668166,68588.0,68587.0,0.01259582]
[1729442680404,0.42115399,68588.0,68587.0,0.01259582]
[1729442680623,0.48668166,68588.0,68587.0,0.001656]
[1729442680848,0.48668166,68588.0,68587.0,0.01259574]
[1729442682614,0.42115399,68588.0,68587.0,0.01259574]
[1729442684762,0.42115399,68588.0,68587.0,0.001656]
[1729442684981,0.42115399,68588.0,68587.0,0.01259549]
[1729442692312,0.42115399,68588.0,68587.0,0.01259477]
[1729442692518,0.48667531,68588.0,68587.0,0.01259477]
[1729442694566,0.41896647,68588.0,68587.0,0.01259477]
[1729442695001,0.42115425,68588.0,68587.0,0.01259477]
[1729442695919,0.48667557,68588.0,68587.0,0.001656]
[1729442696143,0.42115425,68588.0,68587.0,0.01259496]
[1729442696367,0.42115425,68588.0,68587.0,0.001656]
[1729442696771,0.42115425,68588.0,68587.0,0.01259494]
[1729442697248,0.48667557,68588.0,68587.0,0.01259494]
[1729442697920,0.42115425,68588.0,68587.0,0.01259494]
[1729442698175,0.48667557,68588.0,68587.0,0.01259494]
[1729442699027,0.42115425,68588.0,68587.0,0.01259494]
[1729442699718,0.48667557,68588.0,68587.0,0.001656]
[1729442699917,0.48667551,68588.0,68587.0,0.01259532]
[1729442700190,0.42115425,68588.0,68587.0,0.02353464]
[1729442700401,0.48667549,68588.0,68587.0,0.02353464]
[1729442701064,0.4866753,68588.0,68587.0,0.02353464]
[1729442706034,0.4866753,68588.0,68587.0,0.01259532]
[1729442706261,0.4866753,68588.0,68587.0,0.02353518]
[1729442707947,0.4866753,68588.0,68587.0,0.01259532]
[1729442708182,0.4866753,68588.0,68587.0,0.02353515]
[1729442708398,0.4866753,68588.0,68587.0,0.03447498]
[1729442708764,0.4866753,68588.0,68587.0,0.01259583]
[1729442709569,0.42115425,68588.0,68587.0,0.01259583]
[1729442710337,0.44397491,68588.0,68587.0,0.01259583]
[1729442711420,0.50949596,68588.0,68587.0,0.01259583]
[1729442711845,0.44397491,68588.0,68587.0,0.01259583]
[1729442712720,0.50949596,68588.0,68587.0,0.01259583]
[1729442713375,0.50949596,68588.0,68587.0,0.001656]
[1729442713631,0.50949596,68588.0,68587.0,0.01259568]
[1729442714806,0.44397491,68588.0,68587.0,0.01259568]
[1729442717472,0.44397491,68588.0,68587.0,0.012596]
[1729442719510,0.50948312,68588.0,68587.0,0.012596]
[1729442719704,0.44397491,68588.0,68587.0,0.012596]
[1729442720371,0.50948312,68588.0,68587.0,0.012596]
[1729442721265,0.44397491,68588.0,68587.0,0.012596]
[1729442721701,0.50948312,68588.0,68587.0,0.012596]
[1729442722169,0.44397491,68588.0,68587.0,0.012596]
[1729442722603,0.50948312,68588.0,68587.0,0.012596]
[1729442723883,0.44397491,68588.0,68587.0,0.012596]
[1729442725787,0.48762396,68588.0,68587.0,0.012596]
[1729442726018,0.44397491,68588.0,68587.0,0.012596]
[1729442726226,0.48762386,68588.0,68587.0,0.012596]
[1729442726899,0.54589376,68588.0,68587.0,0.012596]
[1729442727111,0.62669376,68588.0,68587.0,0.012596]
[1729442727398,0.69220197,68588.0,68587.0,0.001656]
[1729442727824,0.62669376,68588.0,68587.0,0.001656]
[1729442728030,0.69216446,68588.0,68587.0,0.001656]
[1729442728467,0.69215779,68588.0,68587.0,0.001656]
[1729442728706,0.69215772,68588.0,68587.0,0.001656]
[1729442729179,0.62669376,68588.0,68587.0,0.001656]
[1729442729825,0.69215156,68588.0,68587.0,0.001656]
[1729442732994,0.62669376,68588.0,68587.0,0.001656]
[1729442733672,0.69216164,68588.0,68587.0,0.001656]
[1729442734423,0.69216159,68588.0,68587.0,0.001656]
[1729442735803,0.59426159,68588.0,68587.0,0.001656]
[1729442737876,0.52879376,68588.0,68587.0,0.001656]
[1729442738327,0.5942722,68588.0,68587.0,0.001656]
[1729442738811,0.52879376,68588.0,68587.0,0.001656]
[1729442750008,0.52879376,68588.0,68587.0,0.001656]
[1729442754913,0.52879376,68588.0,68576.0,0.03]
[1729442754914,0.145821,68577.0,68576.0,0.03]
[1729442755132,0.145821,68577.0,68576.0,0.04093953]
[1729442755133,0.41778015,68577.0,68576.0,0.04093953]
[1729442757048,0.41778015,68577.0,68576.0,0.04093441]
[1729442758332,0.41778015,68577.0,68576.0,0.03]
[1729442766732,0.41778015,68577.0,68576.0,0.030828]
[1729442770536,0.44060378,68577.0,68576.0,0.030828]
[1729442780273,0.44060378,68577.0,68576.0,0.04175848]
[1729442781422,0.44060378,68577.0,68576.0,0.04175978]
[1729442787036,0.41778015,68577.0,68576.0,0.04175978]
[1729442789858,0.590199,68577.0,68576.0,0.04175978]
[1729442790080,0.590199,68577.0,68572.0,0.001656]
[1729442790081,0.00401885,68573.0,68572.0,0.001656]
[1729442790241,0.421807,68573.0,68572.0,0.001656]
[1729442790440,0.42399535,68573.0,68572.0,0.001656]
[1729442797582,0.44494269,68573.0,68572.0,0.001656]
[1729442798647,0.48855681,68573.0,68572.0,0.001656]
[1729442799125,0.44494269,68573.0,68572.0,0.001656]
[1729442800745,0.48855681,68573.0,68572.0,0.001656]
[1729442801442,0.44494269,68573.0,68572.0,0.001656]
[1729442803492,0.48855681,68573.0,68572.0,0.001656]
[1729442803732,0.44494269,68573.0,68572.0,0.001656]
[1729442810562,0.48856362,68573.0,68572.0,0.001656]
[1729442811451,0.44494269,68573.0,68572.0,0.001656]
[1729442812620,0.48856362,68573.0,68572.0,0.001656]
[1729442814190,0.44494269,68573.0,68572.0,0.001656]
[1729442816667,0.48856362,68573.0,68572.0,0.001656]
[1729442816911,0.44494269,68573.0,68572.0,0.001656]
[1729442818951,0.48856362,68573.0,68572.0,0.001656]
[1729442819171,0.44494269,68573.0,68572.0,0.001656]
[1729442819831,0.48858051,68573.0,68572.0,0.001656]
[1729442823659,0.44494269,68573.0,68572.0,0.001656]
[1729442824584,0.48858051,68573.0,68572.0,0.001656]
[1729442828131,0.44494269,68573.0,68572.0,0.001656]
[1729442828627,0.48861688,68573.0,68572.0,0.001656]
[1729442828867,0.44494269,68573.0,68572.0,0.001656]
[1729442829538,0.51039943,68573.0,68572.0,0.001656]
[1729442829999,0.59119943,68573.0,68572.0,0.001656]
[1729442830680,0.52574269,68573.0,68572.0,0.001656]
[1729442831113,0.61301834,68573.0,68572.0,0.001656]
[1729442832981,0.52574269,68573.0,68572.0,0.001656]
[1729442834811,0.63483726,68573.0,68572.0,0.001656]
[1729442835041,0.52574269,68573.0,68572.0,0.001656]
[1729442837819,0.63494973,68573.0,68572.0,0.001656]
[1729442838938,0.63494971,68573.0,68572.0,0.001656]
[1729442839839,0.52574269,68573.0,68572.0,0.001656]
[1729442840059,0.63495002,68573.0,68572.0,0.001656]
[1729442840543,0.52574269,68573.0,68572.0,0.001656]
[1729442841248,0.63495119,68573.0,68572.0,0.001656]
[1729442841470,0.63495181,68573.0,68572.0,0.001656]
[1729442844034,0.7834835,68573.0,68572.0,0.001656]
[1729442844506,0.7834835,68573.0,68558.0,0.001656]
[1729442844507,0.245859,68559.0,68558.0,0.001656]
[1729442844512,0.268859,68559.0,68558.0,0.001656]
[1729442844800,0.268859,68559.0,68558.0,0.01259257]
[1729442844801,0.47231632,68559.0,68558.0,0.01259257]
[1729442845024,0.47231632,68559.0,68558.0,0.001656]
[1729442846436,0.53778544,68559.0,68558.0,0.001656]
[1729442846684,0.27288285,68557.0,68556.0,0.001656]
[1729442846909,0.47912435,68557.0,68556.0,0.001656]
[1729442847365,0.245876,68551.0,68550.0,0.04109]
[1729442847608,0.41783515,68551.0,68550.0,0.04109]
[1729442849483,0.44066663,68551.0,68550.0,0.04109]
[1729442852245,0.45428576,68551.0,68550.0,0.04109]
[1729442853457,0.44468548,68551.0,68550.0,0.04109]
[1729442853682,0.45829794,68551.0,68550.0,0.04109]
[1729442854595,0.44468548,68551.0,68550.0,0.04109]
[1729442855081,0.65457346,68551.0,68550.0,0.04109]
[1729442855298,0.69817601,68551.0,68550.0,0.04109]
[1729442855732,0.69811866,68551.0,68550.0,0.04109]
[1729442856489,0.63174198,68551.0,68550.0,0.04109]
[1729442856947,0.618132,68551.0,68550.0,0.04109]
[1729442857169,0.63173234,68551.0,68550.0,0.04109]
[1729442857399,0.618132,68551.0,68550.0,0.04109]
[1729442857666,0.63173229,68551.0,68550.0,0.04109]
[1729442857895,0.83035975,68551.0,68550.0,0.04109]
[1729442858120,0.83035975,68551.0,68549.0,0.02020322]
[1729442858121,0.28289685,68550.0,68549.0,0.02020322]
[1729442858345,0.44545629,68550.0,68549.0,0.02020322]
[1729442858592,0.44545111,68550.0,68549.0,0.02020322]
[1729442859043,0.431856,68550.0,68549.0,0.02020322]
[1729442859280,0.44545111,68550.0,68549.0,0.02020322]
[1729442859750,0.57989631,68550.0,68549.0,0.02020322]
[1729442860256,0.57985093,68550.0,68549.0,0.02020322]
[1729442860500,0.53635111,68550.0,68549.0,0.02020322]
[1729442860734,0.61545111,68550.0,68549.0,0.02020322]
[1729442860975,0.61745111,68550.0,68549.0,0.02020322]
[1729442861216,0.72300939,68550.0,68549.0,0.02020322]
[1729442861903,0.61545111,68550.0,68549.0,0.02020322]
[1729442862121,0.63719167,68550.0,68549.0,0.02020322]